fUSD/lending_fUSD_20250106
["ID","MTS","AMOUNT","RATE_DAILY","PERIOD"]
[347856845,1736161844910,-128963.74811631,0.0001098,2]
[347856846,1736161844920,-20724.40910563,0.00010998,2]
[347856847,1736161844930,-255.0,0.00010998,2]
[347856848,1736161844940,-2082.15,0.00010999,2]
[347856849,1736161844949,-500.0,0.00010999,2]
[347856850,1736161844959,-1077.0,0.00011,2]
[347856851,1736161844968,-80795.0,0.00011,2]
[347856852,1736161844978,-1872394.90109197,0.00011,2]
[347856853,1736161845006,-646.67879505,0.00011,2]
[347856854,1736161845033,-385.87238127,0.00011,2]
[347856855,1736161845044,-65964.28969387,0.00011,2]
[347856856,1736161845055,-85654.22374158,0.00011,2]
[347856859,1736161845382,-1127.04,9.999e-05,2]
[347856860,1736161845392,-1313.87,0.00010272,2]
[347856861,1736161845402,-500.0,0.00010272,2]
[347856862,1736161845414,-500.0,0.00010545,2]
[347856863,1736161845424,-1313.87,0.00010546,2]
[347856864,1736161845435,-1031.67,0.00010671,2]
[347856865,1736161845444,-1313.87,0.0001082,2]
[347856866,1736161845454,-1031.67,0.00010945,2]
[347856867,1736161845463,-5764.62946613,0.00011,2]
[347856868,1736161845474,-1693.55000005,0.00011,2]
[347856869,1736161845486,-1197.36579206,0.00011,2]
[347856870,1736161845498,-2692.47478749,0.00011,2]
[347856871,1736161845546,-500.80795696,0.00010545,2]
[347856872,1736161845556,-3420.83524304,0.00011,2]
[347856873,1736161845568,-3723.15810072,0.00011,2]
[347856874,1736161845579,-1483.78804351,0.00011,2]
[347856875,1736161845591,-642.68494124,0.00011,2]
[347856878,1736161845862,-1021.095,0.00011,2]
[347856880,1736161845874,-483.21795857,0.00011,2]
[347856881,1736161845885,-452.45572213,0.00011,2]
[347856884,1736161845910,-166.09,0.00010819,2]
[347856885,1736161845919,-596.75,0.00011,2]
[347856886,1736161845931,-859.757009,0.00011,2]
[347856887,1736161845943,-622.68,0.00011,2]
[347856888,1736161845953,-302.71657206,0.00011,2]
[347856889,1736161845965,-533.699318,0.00011,2]
[347856890,1736161845975,-418.59099643,0.00011,2]
[347856891,1736161845987,-297.82867182,0.00011,2]
[347856892,1736161846310,-1127.04,0.00010273,2]
[347856893,1736161846320,-500.0,0.00010545,2]
[347856894,1736161846329,-1127.04,0.00010547,2]
[347856895,1736161846338,-343.94175515,0.00010819,2]
[347856896,1736161846348,-23006.85984114,0.00011,2]
[347856897,1736161846362,-12917.83962908,0.00011,2]
[347856898,1736161846373,-3197.54513101,0.00011,2]
[347856899,1736161846384,-709.35433035,0.00011,2]
[347856900,1736161846395,-402.6,0.00011,2]
[347856901,1736161846413,-7764.0017081,0.00011,2]
[347856902,1736161846424,-5358.95820267,0.00011,2]
[347856903,1736161846435,-267.180579,0.00011,2]
[347856904,1736161846453,-276.29565446,0.00011,2]
[347856905,1736161846940,-324.4,0.00010545,2]
[347856906,1736161846951,-175.6,0.00010545,2]
[347856907,1736161846961,-87.05593058,0.00010545,2]
[347856908,1736161846972,-412.94406942,0.00010545,2]
[347856909,1736161846983,-1127.04,0.00010821,2]
[347856910,1736161846992,-9530.66437558,0.00011,2]
[347856911,1736161847010,-2184.54012217,0.00011,2]
[347856912,1736161847021,-48821.01897515,0.00011,2]
[347856913,1736161847032,-8896.85184912,0.00011,2]
[347856914,1736161847043,-3792.53257692,0.00011,2]
[347856915,1736161847054,-1139.1771887,0.00011,2]
[347856916,1736161847065,-1176.26119037,0.00011,2]
[347856917,1736161847077,-7119.47499207,0.00011,2]
[347856918,1736161847151,-4011.775974,0.00011,2]
[347856919,1736161847163,-2611.4125,0.00011,2]
[347856920,1736161847175,-1955.8075663,0.00011,2]
[347856921,1736161847187,-2074.8974902,0.00011,2]
[347856922,1736161847198,-2936.358994,0.00011,2]
[347856923,1736161847210,-5342.2933895,0.00011,2]
[347856924,1736161847222,-3373.4755,0.00011,2]
[347856925,1736161847247,-862.1363,0.00010172,2]
[347856926,1736161847256,-500.0,0.00010819,2]
[347856927,1736161847266,-461.36613452,0.00011,2]
[347856930,1736162121038,471.38,8.219e-05,2]
[347856931,1736162204460,11.36,8.4e-05,2]
[347856935,1736162809129,-993.3,8.4e-05,2]
[347856936,1736162809151,-375.35,9.329e-05,2]
[347856937,1736162809173,-1000.0,9.372e-05,2]
[347856938,1736162809198,-300.0,9.466e-05,2]
[347856939,1736162809226,-717.4,9.467e-05,2]
[347856940,1736162809250,-558.96687201,9.467e-05,2]
[347856975,1736163031846,-226.11,9.333e-05,2]
[347856976,1736163031856,-2507.28,9.333e-05,2]
[347856977,1736163031865,-20698.60996885,9.353e-05,2]
[347856978,1736163031876,-450.1191911,9.353e-05,2]
[347856979,1736163031886,-1107.64615845,9.353e-05,2]
[347856980,1736163031942,-644.666761,9.353e-05,2]
[347856981,1736163032005,-827.03751168,9.353e-05,2]
[347856982,1736163032013,-161.92040892,9.353e-05,2]
[347856983,1736163032020,-2565.43,9.38e-05,2]
[347856984,1736163032027,-2250.71693061,9.573e-05,2]
[347856985,1736163032036,-987.09715106,9.573e-05,2]
[347856986,1736163032044,-1039.7999999,9.573e-05,2]
[347856987,1736163032052,-2544.1535713,9.573e-05,2]
[347856988,1736163032060,-3511.75169408,9.573e-05,2]
[347856989,1736163032069,-1059.9999925,9.573e-05,2]
[347856990,1736163032077,-1125.65000025,9.573e-05,2]
[347856991,1736163032087,-12365.2627397,9.573e-05,2]
[347856992,1736163032093,-1501.80896543,9.573e-05,2]
[347856993,1736163032102,-250.0,9.573e-05,2]
[347856994,1736163032112,-150.0,9.661e-05,2]
[347856995,1736163032121,-14004.90124001,9.988e-05,2]
[347856996,1736163032131,-251.45,9.99e-05,2]
[347856997,1736163032140,-150.0,9.99e-05,2]
[347856998,1736163032149,-150.0,9.99e-05,2]
[347856999,1736163032159,-150.0,9.99e-05,2]
[347857000,1736163032168,-500.0,9.999e-05,2]
[347857001,1736163032177,-1653.02,9.999e-05,2]
[347857002,1736163032187,-1475.29,9.999e-05,2]
[347857003,1736163032196,-1345.24,9.999e-05,2]
[347857004,1736163032205,-1017.1831066,9.999e-05,2]
[347857005,1736163032236,-453.5768934,9.999e-05,2]
[347857006,1736163032246,-767.96,9.999e-05,2]
[347857007,1736163032255,-500.0,9.999e-05,2]
[347857008,1736163032265,-1441.55,9.999e-05,2]
[347857009,1736163032274,-500.0,9.999e-05,2]
[347857010,1736163032284,-500.0,9.999e-05,2]
[347857011,1736163032293,-500.0,9.999e-05,2]
[347857012,1736163032303,-393.64436181,9.999e-05,2]
[347857013,1736163032314,-386.20563819,9.999e-05,2]
[347857014,1736163032324,-500.0,9.999e-05,2]
[347857015,1736163032334,-500.0,9.999e-05,2]
[347857016,1736163032343,-500.0,9.999e-05,2]
[347857017,1736163032352,-485.69028451,0.0001,2]
[347857018,1736163032364,-22190.78375707,0.0001,2]
[347857205,1736163037858,-487.52096553,9.999e-05,2]
[347857213,1736163038115,-515.55732336,0.0001,2]
[347857215,1736163038129,-253.80732259,0.0001,2]
[347857217,1736163038142,-1631.46780197,0.0001,2]
[347857219,1736163038155,-22556.59450179,0.0001,2]
[347857220,1736163038181,-193172.23777553,0.0001,2]
[347857221,1736163038194,-37806.84164791,0.0001,2]
[347857222,1736163038206,-2400.69348197,0.0001,2]
[347857223,1736163038218,-521.74533198,0.0001,2]
[347857224,1736163038231,-492.3,0.0001,2]
[347857225,1736163038255,-503.598,0.0001,2]
[347857226,1736163038267,-542.92,0.0001,2]
[347857227,1736163038279,-90665.74358268,0.0001,2]
[347857228,1736163038291,-899.71554698,0.0001,2]
[347857229,1736163038303,-1972.34,0.0001,2]
[347857230,1736163038316,-699.54,0.0001,2]
[347857231,1736163038328,-2808.0,0.0001,2]
[347857232,1736163038344,-18359.16331166,0.0001,2]
[347857233,1736163038354,-98137.79647675,0.0001,2]
[347857234,1736163038365,-1839.27311642,0.00010044,2]
[347857235,1736163038375,-900.0,0.000101,3]
[347857236,1736163038385,-260.0,0.00010137,2]
[347857237,1736163038395,-167.48,0.00010145,2]
[347857238,1736163038404,-1900.0,0.000102,3]
[347857239,1736163038415,-500.0,0.00010219,2]
[347857240,1736163038424,-500.0,0.00010272,2]
[347857241,1736163038434,-500.0,0.00010272,2]
[347857242,1736163038444,-500.0,0.00010272,2]
[347857243,1736163038453,-500.0,0.00010272,2]
[347857244,1736163038463,-500.0,0.00010272,2]
[347857245,1736163038472,-500.0,0.00010272,2]
[347857246,1736163038482,-702.72,0.00010272,2]
[347857247,1736163038491,-500.0,0.00010272,2]
[347857248,1736163038500,-519.19,0.00010272,2]
[347857249,1736163038510,-628.73,0.00010272,2]
[347857250,1736163038519,-500.0,0.00010272,2]
[347857251,1736163038528,-705.38,0.00010272,2]
[347857252,1736163038538,-500.0,0.00010272,2]
[347857253,1736163038547,-500.0,0.00010272,2]
[347857254,1736163038556,-500.0,0.00010272,2]
[347857255,1736163038566,-500.0,0.00010272,2]
[347857256,1736163038576,-500.0,0.00010272,2]
[347857257,1736163038586,-500.0,0.00010272,2]
[347857258,1736163038595,-500.0,0.00010272,2]
[347857259,1736163038604,-500.0,0.00010272,2]
[347857260,1736163038614,-500.0,0.00010272,2]
[347857261,1736163038623,-500.0,0.00010272,2]
[347857262,1736163038634,-500.0,0.00010272,2]
[347857263,1736163038644,-500.0,0.00010272,2]
[347857264,1736163038653,-1409.52,0.00010272,2]
[347857265,1736163038664,-500.0,0.00010272,2]
[347857266,1736163038675,-500.0,0.00010272,2]
[347857267,1736163038684,-1185.81,0.00010272,2]
[347857268,1736163038693,-500.0,0.00010272,2]
[347857269,1736163038703,-500.0,0.00010272,2]
[347857270,1736163038713,-1878.13,0.00010272,2]
[347857271,1736163038722,-579.52,0.00010272,2]
[347857272,1736163038732,-5424.12,0.00010272,2]
[347857273,1736163038741,-500.0,0.00010272,2]
[347857274,1736163038750,-500.0,0.00010272,2]
[347857275,1736163038760,-500.0,0.00010272,2]
[347857276,1736163038769,-500.0,0.00010272,2]
[347857277,1736163038779,-500.0,0.00010272,2]
[347857278,1736163038789,-500.0,0.00010272,2]
[347857279,1736163038799,-2689.22,0.00010272,2]
[347857280,1736163038808,-2577.17,0.00010272,2]
[347857281,1736163038818,-500.0,0.00010272,2]
[347857282,1736163038827,-500.0,0.00010272,2]
[347857283,1736163038836,-939.2,0.00010272,2]
[347857284,1736163038845,-838.84,0.00010272,2]
[347857285,1736163038855,-1000.0,0.00010272,2]
[347857286,1736163038864,-674.17,0.00010272,2]
[347857287,1736163038874,-552.68,0.00010272,2]
[347857288,1736163038883,-500.0,0.00010273,2]
[347857289,1736163038892,-1653.02,0.00010273,2]
[347857290,1736163038901,-1475.29,0.00010273,2]
[347857291,1736163038911,-1345.24,0.00010273,2]
[347857292,1736163038921,-1470.76,0.00010273,2]
[347857293,1736163038930,-767.96,0.00010273,2]
[347857294,1736163038939,-500.0,0.00010273,2]
[347857295,1736163038948,-1441.55,0.00010273,2]
[347857296,1736163038958,-500.0,0.00010273,2]
[347857297,1736163038967,-500.0,0.00010273,2]
[347857298,1736163038976,-500.0,0.00010273,2]
[347857299,1736163038986,-779.85,0.00010273,2]
[347857300,1736163038995,-500.0,0.00010273,2]
[347857301,1736163039004,-500.0,0.00010273,2]
[347857302,1736163039014,-2900.0,0.000103,3]
[347857303,1736163039023,-3900.0,0.000104,3]
[347857304,1736163039032,-498.143,0.0001045,2]
[347857305,1736163039041,-471.38,0.00010454,2]
[347857306,1736163039050,-4800.0,0.000105,3]
[347857307,1736163039059,-1254.17684027,0.00010511,2]
[347857308,1736163039068,-1551.48,0.00010543,2]
[347857309,1736163039077,-767.33,0.00010543,2]
[347857310,1736163039086,-1160.45,0.00010543,2]
[347857311,1736163039095,-513.19,0.00010543,2]
[347857312,1736163039105,-1173.63,0.00010543,2]
[347857313,1736163039114,-1969.13,0.00010543,2]
[347857314,1736163039123,-1170.47,0.00010543,2]
[347857315,1736163039133,-3039.33,0.00010543,2]
[347857316,1736163039141,-1356.81,0.00010543,2]
[347857317,1736163039150,-1120.7,0.00010543,2]
[347857318,1736163039159,-793.34,0.00010543,2]
[347857319,1736163039169,-1841.81,0.00010543,2]
[347857320,1736163039178,-1000.0,0.00010543,2]
[347857321,1736163039187,-500.0,0.00010545,2]
[347857322,1736163039196,-500.0,0.00010545,2]
[347857323,1736163039206,-500.0,0.00010545,2]
[347857324,1736163039215,-500.0,0.00010545,2]
[347857325,1736163039225,-500.0,0.00010545,2]
[347857326,1736163039234,-500.0,0.00010545,2]
[347857327,1736163039243,-500.0,0.00010545,2]
[347857328,1736163039252,-500.0,0.00010545,2]
[347857329,1736163039262,-500.0,0.00010545,2]
[347857330,1736163039271,-500.0,0.00010545,2]
[347857331,1736163039281,-500.0,0.00010545,2]
[347857332,1736163039290,-500.0,0.00010545,2]
[347857333,1736163039299,-500.0,0.00010545,2]
[347857334,1736163039309,-500.0,0.00010545,2]
[347857335,1736163039318,-500.0,0.00010545,2]
[347857336,1736163039328,-500.0,0.00010545,2]
[347857337,1736163039337,-500.0,0.00010545,2]
[347857338,1736163039346,-500.0,0.00010545,2]
[347857339,1736163039356,-500.0,0.00010545,2]
[347857340,1736163039365,-500.0,0.00010545,2]
[347857341,1736163039375,-500.0,0.00010545,2]
[347857342,1736163039384,-500.0,0.00010545,2]
[347857343,1736163039394,-500.0,0.00010545,2]
[347857344,1736163039404,-500.0,0.00010545,2]
[347857345,1736163039414,-500.0,0.00010545,2]
[347857346,1736163039424,-500.0,0.00010545,2]
[347857347,1736163039433,-500.0,0.00010545,2]
[347857348,1736163039443,-500.0,0.00010545,2]
[347857349,1736163039453,-500.0,0.00010545,2]
[347857350,1736163039463,-500.0,0.00010545,2]
[347857351,1736163039472,-500.0,0.00010545,2]
[347857352,1736163039481,-500.0,0.00010545,2]
[347857353,1736163039490,-500.0,0.00010545,2]
[347857354,1736163039500,-500.0,0.00010545,2]
[347857355,1736163039509,-500.0,0.00010545,2]
[347857356,1736163039519,-500.0,0.00010545,2]
[347857357,1736163039528,-500.0,0.00010545,2]
[347857358,1736163039538,-500.0,0.00010545,2]
[347857359,1736163039548,-500.0,0.00010545,2]
[347857360,1736163039558,-500.0,0.00010545,2]
[347857361,1736163039567,-500.0,0.00010545,2]
[347857362,1736163039577,-500.0,0.00010545,2]
[347857363,1736163039586,-500.0,0.00010545,2]
[347857364,1736163039596,-500.0,0.00010545,2]
[347857365,1736163039606,-500.0,0.00010545,2]
[347857366,1736163039615,-500.0,0.00010545,2]
[347857367,1736163039625,-500.0,0.00010545,2]
[347857368,1736163039638,-500.0,0.00010545,2]
[347857369,1736163039648,-551.64,0.00010545,2]
[347857370,1736163039657,-500.0,0.00010545,2]
[347857371,1736163039668,-500.0,0.00010545,2]
[347857372,1736163039679,-500.0,0.00010545,2]
[347857373,1736163039689,-500.0,0.00010545,2]
[347857374,1736163039699,-500.0,0.00010545,2]
[347857375,1736163039710,-500.0,0.00010545,2]
[347857376,1736163039719,-787.37,0.00010545,2]
[347857377,1736163039729,-500.0,0.00010545,2]
[347857378,1736163039738,-500.0,0.00010545,2]
[347857379,1736163039748,-500.0,0.00010545,2]
[347857380,1736163039758,-500.0,0.00010545,2]
[347857381,1736163039767,-500.0,0.00010545,2]
[347857382,1736163039777,-902.71,0.00010545,2]
[347857383,1736163039787,-500.0,0.00010545,2]
[347857384,1736163039796,-1886.62,0.00010545,2]
[347857385,1736163039806,-500.0,0.00010545,2]
[347857386,1736163039815,-500.0,0.00010545,2]
[347857387,1736163039824,-500.0,0.00010545,2]
[347857388,1736163039834,-500.0,0.00010545,2]
[347857389,1736163039843,-500.0,0.00010545,2]
[347857390,1736163039852,-500.0,0.00010545,2]
[347857391,1736163039861,-500.0,0.00010545,2]
[347857392,1736163039870,-500.0,0.00010545,2]
[347857393,1736163039879,-500.0,0.00010545,2]
[347857394,1736163039889,-2380.24,0.00010545,2]
[347857395,1736163039898,-500.0,0.00010545,2]
[347857396,1736163039907,-500.0,0.00010545,2]
[347857397,1736163039917,-500.0,0.00010545,2]
[347857398,1736163039927,-1361.58,0.00010545,2]
[347857399,1736163039936,-500.0,0.00010545,2]
[347857400,1736163039946,-500.0,0.00010545,2]
[347857401,1736163039955,-500.0,0.00010545,2]
[347857402,1736163039964,-500.0,0.00010545,2]
[347857403,1736163039973,-500.0,0.00010545,2]
[347857404,1736163039983,-1263.12,0.00010545,2]
[347857405,1736163039992,-500.0,0.00010545,2]
[347857406,1736163040001,-500.0,0.00010545,2]
[347857407,1736163040010,-2273.28,0.00010545,2]
[347857408,1736163040019,-500.0,0.00010545,2]
[347857409,1736163040028,-500.0,0.00010545,2]
[347857410,1736163040038,-2016.39,0.00010545,2]
[347857411,1736163040047,-500.0,0.00010545,2]
[347857412,1736163040056,-500.0,0.00010545,2]
[347857413,1736163040065,-500.0,0.00010545,2]
[347857414,1736163040075,-500.0,0.00010545,2]
[347857415,1736163040084,-2989.35,0.00010545,2]
[347857416,1736163040093,-557.24,0.00010545,2]
[347857417,1736163040102,-500.0,0.00010545,2]
[347857418,1736163040111,-500.0,0.00010545,2]
[347857419,1736163040120,-500.0,0.00010545,2]
[347857420,1736163040129,-500.0,0.00010545,2]
[347857421,1736163040139,-500.0,0.00010545,2]
[347857422,1736163040148,-999.56,0.00010545,2]
[347857423,1736163040158,-714.26,0.00010545,2]
[347857424,1736163040169,-500.0,0.00010545,2]
[347857425,1736163040178,-500.0,0.00010545,2]
[347857426,1736163040188,-500.0,0.00010545,2]
[347857427,1736163040198,-929.6,0.00010545,2]
[347857428,1736163040207,-500.0,0.00010545,2]
[347857429,1736163040216,-500.0,0.00010545,2]
[347857430,1736163040225,-500.0,0.00010545,2]
[347857431,1736163040234,-500.0,0.00010545,2]
[347857432,1736163040243,-500.0,0.00010545,2]
[347857433,1736163040253,-229.73623971,0.00010545,2]
[347857434,1736163040262,-500.0,0.00010545,2]
[347857435,1736163040272,-500.0,0.00010545,2]
[347857436,1736163040282,-608.83,0.00010545,2]
[347857437,1736163040291,-500.0,0.00010545,2]
[347857438,1736163040300,-500.0,0.00010545,2]
[347857439,1736163040310,-500.0,0.00010545,2]
[347857440,1736163040319,-500.0,0.00010545,2]
[347857441,1736163040328,-500.0,0.00010545,2]
[347857442,1736163040338,-500.0,0.00010545,2]
[347857443,1736163040347,-500.0,0.00010545,2]
[347857444,1736163040356,-500.0,0.00010545,2]
[347857445,1736163040365,-500.0,0.00010545,2]
[347857446,1736163040375,-501.49,0.00010545,2]
[347857447,1736163040384,-1610.19,0.00010545,2]
[347857449,1736163040394,-559.7,0.00010545,2]
[347857450,1736163040403,-500.0,0.00010546,2]
[347857451,1736163040412,-500.0,0.00010546,2]
[347857452,1736163040427,-500.0,0.00010546,2]
[347857453,1736163040437,-500.0,0.00010546,2]
[347857454,1736163040447,-500.0,0.00010546,2]
[347857455,1736163040456,-702.72,0.00010546,2]
[347857456,1736163040465,-500.0,0.00010546,2]
[347857457,1736163040474,-519.19,0.00010546,2]
[347857458,1736163040483,-628.73,0.00010546,2]
[347857459,1736163040493,-500.0,0.00010546,2]
[347857460,1736163040501,-705.38,0.00010546,2]
[347857461,1736163040510,-500.0,0.00010546,2]
[347857462,1736163040520,-526.48,0.00010546,2]
[347857464,1736163040529,-500.0,0.00010546,2]
[347857466,1736163040538,-500.0,0.00010546,2]
[347857468,1736163040548,-500.0,0.00010546,2]
[347857469,1736163040556,-500.0,0.00010546,2]
[347857470,1736163040565,-500.0,0.00010546,2]
[347857471,1736163040574,-500.0,0.00010546,2]
[347857472,1736163040584,-500.0,0.00010546,2]
[347857473,1736163040594,-1409.52,0.00010546,2]
[347857474,1736163040604,-500.0,0.00010546,2]
[347857475,1736163040613,-500.0,0.00010546,2]
[347857476,1736163040623,-1185.81,0.00010546,2]
[347857477,1736163040634,-500.0,0.00010546,2]
[347857478,1736163040644,-500.0,0.00010546,2]
[347857479,1736163040654,-1878.13,0.00010546,2]
[347857480,1736163040664,-579.52,0.00010546,2]
[347857481,1736163040675,-5424.12,0.00010546,2]
[347857482,1736163040685,-500.0,0.00010546,2]
[347857483,1736163040694,-500.0,0.00010546,2]
[347857484,1736163040704,-500.0,0.00010546,2]
[347857485,1736163040714,-500.0,0.00010546,2]
[347857486,1736163040723,-500.0,0.00010546,2]
[347857487,1736163040732,-500.0,0.00010546,2]
[347857488,1736163040741,-500.0,0.00010546,2]
[347857489,1736163040751,-2689.22,0.00010546,2]
[347857490,1736163040760,-2577.17,0.00010546,2]
[347857491,1736163040769,-500.0,0.00010546,2]
[347857492,1736163040778,-939.2,0.00010546,2]
[347857493,1736163040787,-838.84,0.00010546,2]
[347857494,1736163040797,-1000.0,0.00010546,2]
[347857495,1736163040807,-674.17,0.00010546,2]
[347857496,1736163040816,-552.68,0.00010546,2]
[347857497,1736163040826,-500.0,0.00010546,2]
[347857498,1736163040835,-199.15473788,0.00010546,2]
[347857499,1736163040844,-500.0,0.00010547,2]
[347857500,1736163040854,-1653.02,0.00010547,2]
[347857501,1736163040864,-1475.29,0.00010547,2]
[347857502,1736163040873,-1345.24,0.00010547,2]
[347857503,1736163040883,-1470.76,0.00010547,2]
[347857504,1736163040892,-767.96,0.00010547,2]
[347857505,1736163040902,-500.0,0.00010547,2]
[347857506,1736163040911,-1441.55,0.00010547,2]
[347857507,1736163040920,-500.0,0.00010547,2]
[347857508,1736163040930,-500.0,0.00010547,2]
[347857509,1736163040939,-779.85,0.00010547,2]
[347857510,1736163040948,-500.0,0.00010547,2]
[347857511,1736163040958,-500.0,0.00010547,2]
[347857512,1736163040967,-900.0,0.000106,3]
[347857513,1736163040976,-423.79798139,0.00010611,2]
[347857514,1736163040985,-255.0,0.00010627,2]
[347857515,1736163040995,-717.4,0.0001065,2]
[347857516,1736163041004,-900.0,0.000107,3]
[347857517,1736163041013,-303.0604317,0.0001078,2]
[347857518,1736163041022,-1013.0843,0.000108,2]
[347857519,1736163041031,-900.0,0.000108,3]
[347857520,1736163041040,-500.0,0.00010801,2]
[347857521,1736163041050,-500.0,0.00010801,2]
[347857522,1736163041059,-500.0,0.00010801,2]
[347857523,1736163041068,-706.71,0.00010801,2]
[347857524,1736163041078,-500.0,0.00010801,2]
[347857525,1736163041088,-500.0,0.00010801,2]
[347857526,1736163041098,-820.86,0.00010801,2]
[347857527,1736163041108,-1284.91,0.00010801,2]
[347857528,1736163041117,-588.5,0.00010801,2]
[347857529,1736163041126,-500.0,0.00010801,2]
[347857530,1736163041136,-1313.100797,0.00010801,2]
[347857531,1736163041145,-1226.973046,0.00010801,2]
[347857532,1736163041154,-157.900395,0.00010801,2]
[347857533,1736163041163,-2329.7,0.00010801,2]
[347857534,1736163041172,-156.2883,0.00010801,2]
[347857535,1736163041181,-500.0,0.00010801,2]
[347857536,1736163041191,-500.0,0.00010801,2]
[347857537,1736163041200,-500.0,0.00010801,2]
[347857538,1736163041210,-500.0,0.00010801,2]
[347857539,1736163041219,-2213.04,0.00010801,2]
[347857540,1736163041228,-641.13,0.00010801,2]
[347857541,1736163041238,-500.0,0.00010801,2]
[347857542,1736163041247,-500.0,0.00010801,2]
[347857543,1736163041256,-500.0,0.00010801,2]
[347857544,1736163041265,-850.14,0.00010801,2]
[347857545,1736163041275,-2598.66,0.00010801,2]
[347857546,1736163041285,-1288.73,0.00010801,2]
[347857547,1736163041294,-4424.72,0.00010801,2]
[347857548,1736163041304,-166.425882,0.00010801,2]
[347857549,1736163041313,-1071.52,0.00010801,2]
[347857550,1736163041323,-878.25,0.00010801,2]
[347857551,1736163041332,-1269.60544634,0.00010802,2]
[347857552,1736163041341,-1551.48,0.00010817,2]
[347857553,1736163041350,-767.33,0.00010817,2]
[347857554,1736163041359,-1160.45,0.00010817,2]
[347857555,1736163041368,-1173.63,0.00010817,2]
[347857556,1736163041378,-1969.13,0.00010817,2]
[347857557,1736163041387,-1170.47,0.00010817,2]
[347857558,1736163041396,-3039.33,0.00010817,2]
[347857559,1736163041406,-1356.81,0.00010817,2]
[347857560,1736163041416,-1120.7,0.00010817,2]
[347857561,1736163041425,-793.34,0.00010817,2]
[347857562,1736163041434,-1841.81,0.00010817,2]
[347857563,1736163041443,-500.0,0.00010819,2]
[347857564,1736163041452,-500.0,0.00010819,2]
[347857565,1736163041461,-500.0,0.00010819,2]
[347857566,1736163041470,-269.37,0.00010819,2]
[347857567,1736163041480,-541.71,0.00010819,2]
[347857568,1736163041489,-500.0,0.00010819,2]
[347857569,1736163041499,-500.0,0.00010819,2]
[347857570,1736163041509,-500.0,0.00010819,2]
[347857571,1736163041518,-500.0,0.00010819,2]
[347857572,1736163041528,-500.0,0.00010819,2]
[347857573,1736163041537,-500.0,0.00010819,2]
[347857574,1736163041546,-500.0,0.00010819,2]
[347857575,1736163041556,-500.0,0.00010819,2]
[347857576,1736163041565,-211.31287039,0.00010819,2]
[347857577,1736163041575,-500.0,0.00010819,2]
[347857578,1736163041584,-500.93715457,0.00010819,2]
[347857579,1736163041594,-500.0,0.00010819,2]
[347857580,1736163041604,-500.0,0.00010819,2]
[347857581,1736163041613,-500.0,0.00010819,2]
[347857582,1736163041624,-500.0,0.00010819,2]
[347857583,1736163041636,-500.0,0.00010819,2]
[347857584,1736163041646,-500.0,0.00010819,2]
[347857585,1736163041655,-500.0,0.00010819,2]
[347857586,1736163041666,-500.0,0.00010819,2]
[347857587,1736163041677,-500.0,0.00010819,2]
[347857588,1736163041687,-500.0,0.00010819,2]
[347857589,1736163041697,-430.4,0.00010819,2]
[347857590,1736163041706,-500.0,0.00010819,2]